Workbook

Sheet Introduction
B5: Sunflower Budget
B6: Version 1.0
B7: Rachel Painter | I7: Eryn Bell
B8: Email: rpainter@utk.edu | I8: Email: ebell@utk.edu
B9: Becky Bowling
B10: Email: bowling10@utk.edu
B27: Programs in agriculture and natural resources, 4-H youth development, family and consumer sciences, and resource development.
B28: University of Tennessee Institute of Agriculture, U.S. Department of Agriculture and country governments cooperating.
B29: UT Extension provide equal opportunities in programs and employment.

Sheet Assumptions
B2: Assumptions
B5: This spreadsheet contains the 2025 University of Tennessee cut flower budget for Single-Stem Varieties of Sunflowers. Quantities and prices can be modified on the budget for any light blue cell. This spreadsheet should not be considered representative of all circumstances and is provided as a template or guide that can be used to estimate cost of production. Inputs used and prices for inputs vary tremendously from farm-to-farm; as such, producers are encouraged to use their own inputs, input prices, and cost structures for budgeting and planning purposes.
B10: This budget assumes that this crop is part of a 1/4-acre cut flower operation (approximately 10,890 sq. ft.) managed by one full-time employee (40 hours per week), meaning the farm is assumed to have 5 production spaces of summer annual flowers grown on 1,000 square foot plots each. Expenses such as labor, utilities, equipment, and materials are shared across the entire operation, with each flower section bearing equal distribution of these costs (20%). This assumption allows for management and budgeting for a flower farm producing multiple flower types on a 1/4-acre plot.
B15: This budget assumes single stem sunflower varieties planted on 6 inch spacing for a seeding rate of 4,000 seeds in a 1,000 sq. ft. plot. (333 ft. length, 3 ft. wide bed, with 6 rows of seeds per bed).
B17: Variable Costs
B19: 1 The marketed rate represents the percentage of flower stems successfully sold after accounting for production losses and unsold inventory. Losses can occur from crop failure, transplant issues, harvest or post-harvest damage, and stems that remain unsold due to market limitations. Marketed rates typically vary depending on the producer’s production skills and experience, as well as anticipated market demand. Producers are encouraged to adjust the marketed rate to reflect experience and skills regarding management practices, crop conditions, and sales opportunities.
B25: 2An average price per stem for direct to consumer sales was estimated using the Tennessee Farmers Market Price Reports for various farmers markets as well as prices from experienced producers from across the state. As significant regional and seasonal price variability may exist, kusers are encouraged to adjust this price to reflect market conditions based on specific location, customer demand, and production to improve the accuracy of the budget calculations. Source: https://arec.tennessee.edu/extension/tennessee-market-highlights/
B30: 3An assumption that half (2,000 seeds) are direct-seeded and half of production grown as transplants (plugs) by the producer for succession planting. Seed cost estimated as average cost of single-stem sunflower varieties from common seed supplier prices.
B33: 4Half of seeds grown as transplants by producer assumed (2,000 seeds). This estimate includes the average seed price calculated above and the cost of common growing medium, 606 black growing trays with 36 cells per tray, and energy use of a typical seed starting wire rack station using 16 T8, 18W, 4 ft. bulbs running for 16 hours per day for 2 months to grow transplants. The fixed cost of the wire rack station and bulbs are included in the general overhead fixed costs.
B38: 5For accurate fertilizer and lime recommendations, take a soil sample. An assumption of 20% of soil sample costs are distributed to this crop. Source: https://soillab.tennessee.edu/soil-testing/field-soil-samples/
B41: 6Total fertilizer and pest control applications split over multiple applications. Fertilizer and pest control applications are representative of typical operations in Tennessee after proper testing and following current University of Tennessee Extension recommendations. Recommendations are current at time of publication and will be updated regularly; however, recommendations for agricultural inputs including pesticide registrations may be updated and inclusion in the budget should not be interpreted as a recommendation for use. Consult a county Extension agent for current application and control recommendations.
B46: County Extension office contact information available here.
B47: 7Irrigation variable costs include water cost, driptape and attachments which would often be purchased annually. Irrigation is assumed to be set up as 3 ft wide beds with 2 drip lines of 5/8", 6 mil drip tape with a flow rate of 0.5 gpm. Water cost is estimated for applying 1 inch of water per week with 12 in. emitter spacing and average of water cost calculated from both urban and rural cities costs per 1,000 gal across Tennessee.
B52: 8Staple and ground cover cost estimated for a 6 inch sod staple with a flat top to secure a 3.2 oz woven black ground cover. If no ground cover is used, ground cover and staple cost can be removed.
B55: 9Flower netting costs include the purchase of 6-inch by 6-inch netting and step-in fence posts, which are used to support the netting for plant stabilization throughout the growing season.
B58: 10Labor is estimated as one full time employee managing the 1/4 acre operation. Therefore, 20% of the employee's time would be devoted to this crop, resulting in 8 hours per week for the number of weeks spent producing the crop. This assumption was accurate based on labor hours from a UT cut flower study in 2024. Labor rate is the USDA Adverse Wage Rate for farm workers for 2025.
B60: Source: https://flag.dol.gov/wage-data/adverse-effect-wage-rates#range
B62: 11Machinery repair and maintenance cost are estimated as 5% of purchase price of large equipment, with 20% of the cost allocated to this crop.
B65: 12Fuel and propane estimated to prepare ground, burn holes into woven ground cover, and maintain grass rows between production spaces throughout growing season. Current average prices are estimated, but should be adjusted to reflect current relevant prices.
B68: 13Typical harvest containers are assumed as a variable expense as some harvest containers may be damaged or provided for a customer for bulk purchases. Purchasing harvest containers annually can assist with sanitation and be part of an integrated pest management strategy.
B71: 14Marketing cost are estimated at 20% of maximum gross sales. Marketing costs include packaging such as paper or plastic wrap, bands to secure stems, transportation to selling locations, promotional materials, and other costs not specified related to post-harvest and selling expenses.
B74: 15An operating interest for 6 months of operating capital is estimated at a current interest rate of 7% of all variable expenses. This should be adjusted to reflect current interest rates and considered an opportunity cost of capital being utilized for this enterprise.
B77: Fixed Costs
B78: 16Small tools and equipment include shovels, rakes, a propane torch to burn holes in ground cover, a wheel barrow, hand pruners, gloves, loppers, hammers, mallets, and the main irrigation hookup equipment costs are estimated with a useful life of 3 years and 20% of calculated annual expenses allocated to this crop.
B82: 17Estimated cost of common tiller and lawn mower used for cut flower production and operation maintenance are calculated for the 1/4 acre operation with a useful life of 5 years and 20% of cost allocated to this crop.
B85: 18Expenses for a storage and post-harvest handling building with dimensions of 15'X20'X16' are estimated with a useful life of 15 years, along with interest, insurance, property taxes, repairs on the building. This building would be used for the entire operation with 20% of the annual cost allocated to this crop.
B89: 19Returns to land, ownership, and capital are estimated at 10% of the total variable costs, reflecting the opportunity cost of utilizing the land and invested capital in the flower operation.
B92: 20General overhead costs are estimated at 10% of total production costs of the budget. These costs include expenses not previously accounted for including the transplant starting wire rack and lights, general utilities, insurance, office supplies, administrative or professional support or fees.

Sheet Sunflower Production Budget
A1: Sunflower Budget
A2: Flower Variety | B2: Sunflower, Single Stem Varieties
A3: Production Space | B3: 1000 | C3: sq. ft.
A4: Seeding Rate | B4: 4000 | C4: seeds
A5: Marketed Rate1 | B5: 0.7
A7: Gross Income | B7: Unit | C7: Quantity | D7: $/Unit | E7: Total Estimate
A8: Sunflower Stems2 | B8: Stem | C8: =B$4*B$5 -> 2800 | D8: ='Input Calculations'!$H$25 -> 1.7 | E8: =C8*D8 -> 4760
A10: Variable Costs | B10: Unit | C10: Quantity | D10: $/Unit | E10: Total Estimate
A11: Seed3 | B11: seed | C11: =B4/2 -> 2000 | D11: ='Input Calculations'!D$34 -> 0.0368 | E11: =C11*D11 -> 73.6
A12: Transplants (growing plugs)4 | B12: plugs | C12: =B4/2 -> 2000 | D12: ='Input Calculations'!C$57 -> 0.099733 | E12: 199.466
A13: Soil Test5 | B13: test | C13: 0.2 | D13: 15 | E13: 3
A14: Fertilizer - 20-10-206 | B14: lb. | C14: ='Input Calculations'!G$94 -> 10 | D14: ='Input Calculations'!K$94 -> 1.5032 | E14: 15.032
A15: Fungicide - cost of 3 sprays throughout growing season6 | E15: ='Input Calculations'!L$85 -> 8.38675
A16: Insecticide - cost of 4 sprays throughout growing season6 | E16: ='Input Calculations'!L$90 -> 9.485
A17: Irrigation Supplies7
A18: Dripline purchased annually | B18: linear ft. | C18: ='Input Calculations'!E$102 -> 666.6666667 | D18: ='Input Calculations'!K$102 -> 0.0496 | E18: =C18*D18 -> 33.06666667
A19: Attachments purchased annually | C19: 1 | D19: ='Input Calculations'!H$126 -> 67.06 | E19: 67.06
A20: Operation of Irrigation | B20: water use in 1,000 gal. | C20: ='Input Calculations'!K$131 -> 9.86493 | D20: ='Input Calculations'!L$131 -> 6.836333333 | E20: =C20*D20 -> 67.43994979
A21: Staples for Ground Cover8 | B21: staples | C21: ='Input Calculations'!H$66 -> 1000 | D21: ='Input Calculations'!D$68 -> 0.07795 | E21: =D21*C21 -> 77.95
A22: Black Woven Ground Cover8 | B22: ft. | C22: 1000 | D22: ='Input Calculations'!G$64 -> 0.0300137037 | E22: =C22*D22 -> 30.0137037
A23: Flower Netting9 | B23: sq. ft. | C23: 1000 | D23: ='Input Calculations'!J$74 -> 0.075 | E23: 75
A24: Stakes9 | B24: stakes | C24: ='Input Calculations'!L$72 -> 84 | D24: ='Input Calculations'!C$72 -> 0.9966666667 | E24: 83.72
A25: Labor10 | B25: hours | C25: ='Input Calculations'!F$150 -> 68 | D25: 15.87 | E25: 1079.16
A26: Machinery Repair and Maintenance (5%)11 | B26: 1,000 sq. ft. | C26: 1 | D26: ='Input Calculations'!B$166 -> 60 | E26: =D26*C26 -> 60
A27: Fuel12 | B27: gal. | C27: ='Input Calculations'!I$190 -> 6 | D27: ='Input Calculations'!E$190 -> 3.75 | E27: =C27*D27 -> 22.5
A28: Propane12 | B28: lb. | C28: ='Input Calculations'!B$193 -> 0.4 | E28: 0
A29: Harvest Containers13 | B29: each | C29: 10 | D29: ='Input Calculations'!D$155 -> 2.05 | E29: 20.5
A30: Marketing Costs (20% of Estimated Gross Income)14 | D30: =E8*0.2 -> 952 | E30: =D30 -> 952
A31: Operating Interest (7% of Variable Costs)15 | C31: 0.07 | D31: =(SUM(E11:E30)/2) -> 1438.690035 | E31: =D31*C31 -> 100.7083025
A32: Total Variable Costs | E32: =SUM(E11:E31) -> 2978.088373
A34: Fixed Costs | B34: Unit | C34: Quantity | D34: $/Unit | E34: Total Estimate
A35: Small Tools and Equipment16 | B35: Useful Life of 3 Years | C35: 1 | D35: ='Input Calculations'!B$187 -> 102.1406667 | E35: =C35*D35 -> 102.1406667
A36: Tiller17 | B36: Model 732 Tiller | C36: 1 | D36: =('Input Calculations'!B$163)*0.2 -> 18.56 | E36: =C36*D36 -> 18.56
A37: Lawn Mower17 | B37: Mower 35" | C37: 1 | D37: =('Input Calculations'!B$165)*0.2 -> 10.24 | E37: =D37*C37 -> 10.24
A38: Irrigation System Main Component Attachments | C38: 1 | D38: ='Input Calculations'!E$128 -> 18.07666667 | E38: =D38*C38 -> 18.07666667
A39: Storage and Post-Harvest Handling Building18 | B39: (15'X20'X16') | C39: 1 | D39: ='Input Calculations'!N$204 -> 166.9676142 | E39: =C39*D39 -> 166.9676142
A40: Returns to Land, Ownership, and Capital (10% of Variable Costs)19 | D40: =E$32*0.1 -> 297.8088373 | E40: =D40 -> 297.8088373
A41: General Overhead Cost (15% of Total Production Cost)20 | D41: =(SUM($E$32,$E$35:$E$40))*0.15 -> 538.7823236 | E41: =D41 -> 538.7823236
A42: Total Fixed Costs | E42: =SUM(E35:E41) -> 1152.576108
A43: Total Specified Costs | E43: =E42+E32 -> 4130.664481
A45: Returns Over Specified Cost | E45: =E8-E43 -> 629.3355189
A125: Sunflower Budget
A126: Flower Variety | B126: Sunflower, Single Stem Varieties
A127: Production Space | B127: 1000 | C127: sq. ft.
A128: Seeding Rate/ Spacing | B128: 4000
A129: Crop Survival and Marketable Rate | B129: 0.7
A131: Gross Income | B131: Unit | C131: Quantity | D131: $/Unit | E131: Total Estimate
A132: Sunflower Stems | B132: Stem | C132: =B$4*B$5 -> 2800 | D132: ='Input Calculations'!$H$25 -> 1.7 | E132: =C132*D132 -> 4760
A134: Variable Costs | B134: Unit | C134: Quantity | D134: $/Unit | E134: Total Estimate
A135: Seed | B135: lb. | C135: 2000 | D135: ='Input Calculations'!D$34 -> 0.0368 | E135: =C135*D135 -> 73.6
A136: Transplants (growing plugs) | B136: plugs | C136: 2000 | D136: ='Input Calculations'!C$57 -> 0.099733 | E136: 199.466
A137: Soil Test | B137: test | C137: 0.2 | D137: 15 | E137: 3
A138: Fertilizer - 20-10-20 | B138: lb. | C138: ='Input Calculations'!G$94 -> 10 | D138: ='Input Calculations'!K$94 -> 1.5032 | E138: 15.032
A139: Fungicide - cost of 3 sprays throughout growing season | E139: ='Input Calculations'!L$85 -> 8.38675
A140: Insecticide - cost of 4 sprays throughout growing season | E140: ='Input Calculations'!L$90 -> 9.485
A141: Irrigation Supplies
A142: Dripline purchased annually | B142: linear ft. | C142: ='Input Calculations'!E$102 -> 666.6666667 | D142: ='Input Calculations'!K$102 -> 0.0496 | E142: =C142*D142 -> 33.06666667
A143: Attachments purchased annually | C143: 1 | D143: ='Input Calculations'!H$126 -> 67.06 | E143: 67.06
A144: Operation of Irrigation | B144: water use in 1,000 gal. | C144: ='Input Calculations'!K$131 -> 9.86493 | D144: ='Input Calculations'!L$131 -> 6.836333333 | E144: =C144*D144 -> 67.43994979
A145: Staples for Ground Cover | B145: staples | C145: ='Input Calculations'!H$66 -> 1000 | D145: ='Input Calculations'!D$68 -> 0.07795 | E145: =D145*C145 -> 77.95
A146: Black Woven Ground Cover | B146: ft. | C146: 1000 | D146: ='Input Calculations'!G$64 -> 0.0300137037 | E146: =C146*D146 -> 30.0137037
A147: Flower Netting | B147: sq. ft. | C147: 1000 | D147: ='Input Calculations'!J$74 -> 0.075 | E147: 75
A148: Stakes | B148: stakes | C148: ='Input Calculations'!L$72 -> 84 | D148: ='Input Calculations'!C$72 -> 0.9966666667 | E148: 83.72
A149: Labor | B149: hours | C149: ='Input Calculations'!F$150 -> 68 | D149: 15.87 | E149: 1079.16
A150: Machinery Repair and Maintenance (5%) | B150: 1,000 sq. ft. | C150: 1 | D150: ='Input Calculations'!B$166 -> 60 | E150: =D150*C150 -> 60
A151: Fuel | B151: gal. | C151: ='Input Calculations'!I$190 -> 6 | D151: ='Input Calculations'!E$190 -> 3.75 | E151: =C151*D151 -> 22.5
A152: Propane | B152: lb. | C152: ='Input Calculations'!B$193 -> 0.4 | E152: 0
A153: Harvest Containers | B153: each | C153: 10 | D153: ='Input Calculations'!D$155 -> 2.05 | E153: 20.5
A154: Marketing Costs (20% of Estimated Gross Income) | D154: =E132*0.2 -> 952 | E154: =D154 -> 952
A155: Operating Interest (7% of Variable Costs) | C155: 0.07 | D155: =(SUM(E135:E154)/2) -> 1438.690035 | E155: =D155*C155 -> 100.7083025
A156: Total Variable Costs | E156: =SUM(E135:E155) -> 2978.088373
A158: Fixed Costs | B158: Unit | C158: Quantity | D158: $/Unit | E158: Total Estimate
A159: Small Tools and Equipment | B159: Useful Life of 3 Years | C159: 1 | D159: ='Input Calculations'!B$187 -> 102.1406667 | E159: =C159*D159 -> 102.1406667
A160: Tiller | B160: Model 732 Tiller | C160: 1 | D160: =('Input Calculations'!B$163)*0.2 -> 18.56 | E160: =C160*D160 -> 18.56
A161: Lawn Mower | B161: Mower 35" | C161: 1 | D161: =('Input Calculations'!B$165)*0.2 -> 10.24 | E161: =D161*C161 -> 10.24
A162: Irrigation System Main Component Attachments | C162: 1 | D162: ='Input Calculations'!E$128 -> 18.07666667 | E162: =D162*C162 -> 18.07666667
A163: Storage and Post-Harvest Handling Building | B163: (15'X20'X16') | C163: 1 | D163: ='Input Calculations'!N$204 -> 166.9676142 | E163: =C163*D163 -> 166.9676142
A164: Returns to Land, Ownership, and Capital (10% of Variable Costs) | D164: =E$32*0.1 -> 297.8088373 | E164: =D164 -> 297.8088373
A165: General Overhead Cost (15% of Total Production Cost) | D165: =(SUM($E$32,$E$35:$E$40))*0.15 -> 538.7823236 | E165: =D165 -> 538.7823236
A166: Total Fixed Costs | E166: =SUM(E159:E165) -> 1152.576108
A167: Total Specified Costs | E167: =E166+E156 -> 4130.664481
A169: Returns Over Specified Cost | E169: =E132-E167 -> 629.3355189

Sheet Input Calculations (hidden)
A1: 1000 sq ft bed | B1: 3 ft wide by 333.3 ft long bed. 6 inch spacing. Means 6 rows of seed for the bed
B2: 4000 | C2: seeds | E2: Trial data from UT study in 2024. Total trial area of 2,000 sq ft split into two growing areas, one low fertilizer application and one medium fertilizer
A4: spacing | D4: seeding | E4: survival | F4: avg survival rate | G4: sq ft | J4: Total inches
A5: Procut Orange 5/31 | B5: a | C5: 1141a | D5: 67 | E5: 63 | F5: =E5/D5 -> 0.9402985075 | G5: 16.5 | H5: 63 | I5: =H5/G5 -> 3.818181818 | J5: =G5*144 -> 2376 | K5: =J5/D5 -> 35.46268657 | L5: =SQRT(K5) -> 5.955055547
A6: Sunrich Lime 5/31 | B6: a | C6: 1142a | D6: 48 | E6: 42 | F6: =E6/D6 -> 0.875 | G6: 12 | H6: 44 | I6: 3.666666667 | J6: 1728 | K6: 36 | L6: 6
A7: Sunrich Orange 5/31 | B7: a | C7: 1143a | D7: 48 | E7: 47 | F7: 0.9791666667 | G7: 12 | H7: 46 | I7: 3.833333333 | J7: 1728 | K7: 36 | L7: 6
A8: Procut Gold Lite 5/31 | B8: a | C8: 1144a | D8: 54 | E8: 52 | F8: 0.962962963 | G8: 13.5 | H8: 62 | I8: 4.592592593 | J8: 1944 | K8: 36 | L8: 6
A9: Procut White 5/31 | B9: a | C9: 1145a | D9: 54 | E9: 53 | F9: 0.9814814815 | G9: 13.5 | H9: 84 | I9: 6.222222222 | J9: 1944 | K9: 36 | L9: 6
A10: Procut Orange 6/17 planted 6/27 | B10: b | C10: 1141b | D10: 35 | E10: 33 | F10: 0.9428571429 | G10: 9 | H10: 25 | I10: 2.777777778 | J10: 1296 | K10: 37.02857143 | L10: 6.085110634
A11: Sunrich Lime 6/17 planted 6/27 | B11: b | C11: 1142b | D11: 29 | E11: 27 | F11: 0.9310344828 | G11: 7.5 | H11: 19 | I11: 2.533333333 | J11: 1080 | K11: 37.24137931 | L11: 6.102571533
A12: Sunrich Orange 6/17 planted 6/27 | B12: b | C12: 1143b | D12: 33 | E12: 31 | F12: 0.9393939394 | G12: 9 | H12: 47 | I12: 5.222222222 | J12: 1296 | K12: 39.27272727 | L12: 6.266795614
A13: Procut Gold Lite 6/17 planted 6/27 | B13: b | C13: 1144b | D13: 34 | E13: 34 | F13: 1 | G13: 9 | H13: 20 | I13: 2.222222222 | J13: 1296 | K13: 38.11764706 | L13: 6.173949065
A14: Procut White 6/17 planted 6/27 | B14: b | C14: 1145b | D14: 33 | E14: 33 | F14: 1 | G14: 9 | H14: 15 | I14: 1.666666667 | J14: 1296 | K14: 39.27272727 | L14: 6.266795614
A15: Procut Orange DS 7/2 | B15: c | C15: 1141c | D15: 36 | E15: 22 | F15: 0.6111111111 | G15: 9 | H15: 8 | I15: 0.8888888889 | J15: 1296 | K15: 36 | L15: 6
A16: Sunrich Lime DS 7/2 | B16: c | C16: 1142c | D16: 36 | E16: 6 | F16: 0.1666666667 | G16: 9 | H16: 1 | J16: 1296 | K16: 36 | L16: 6
A17: Sunrich Orange DS 7/2 | B17: c | C17: 1143c | D17: 36 | E17: 4 | F17: 0.1111111111 | G17: 9 | H17: 5 | J17: 1296 | K17: 36 | L17: 6
A18: Procut Gold Lite DS 7/2 | B18: c | C18: 1144c | D18: 36 | E18: 31 | F18: 0.8611111111 | G18: 9 | H18: 34 | I18: =H18/G18 -> 3.777777778 | J18: 1296 | K18: 36 | L18: 6
A19: Procut White DS 7/2 | B19: c | C19: 1145c | D19: 36 | E19: 32 | F19: 0.8888888889 | G19: 9 | H19: 24 | I19: 2.666666667 | J19: 1296 | K19: 36 | L19: 6
F20: =AVERAGE(F5:F19) -> 0.8127389382 | G20: 80% used in budget
A22: Selling Prices 2024 - Sunflowers
A24: date | B24: location | C24: price | D24: stem count | E24: price per stem | H24: avg price selling stems
E25: =C25/D25 ->  | H25: =AVERAGE(E26:E29) -> 1.7
B26: Coffee Co Producer | C26: 10 | D26: 5 | E26: =C26/D26 -> 2
B27: Nash cut flower collective | C27: 12 | D27: 5 | E27: 2.4
A28: 2024-07-15 | B28: Rutherford farmers market | C28: 1 | D28: 1 | E28: 1 | I28: *assumption: prices averaged from farmers market and direct to consumer retail stores in high-income, urban markets. Prices are highly variable.
A29: 2024-07-29 | B29: Knox Farmers market | C29: 7 | D29: 5 | E29: 1.4
A33: Seed prices from Johnnys | B33: price | C33: 5000 | D33: Average Seed Price
A34: Procut Orange 5/31 | B34: 150 | C34: =B34/C33 -> 0.03 | D34: =AVERAGE(C34:C38) -> 0.0368
A35: Sunrich Lime 5/31 | B35: 210 | C35: =B35/C33 -> 0.042
A36: Sunrich Orange 5/31 | B36: 210 | C36: =B36/C33 -> 0.042
A37: Procut Gold Lite 5/31 | B37: 150 | C37: =B37/C33 -> 0.03
A38: Procut White 5/31 | B38: 200 | C38: =B38/C33 -> 0.04
A39: Procut Orange 6/17 planted 6/27 | B39: 150
A40: Sunrich Lime 6/17 planted 6/27 | B40: 210
A41: Sunrich Orange 6/17 planted 6/27 | B41: 210
A42: Procut Gold Lite 6/17 planted 6/27 | B42: 150
A43: Procut White 6/17 planted 6/27 | B43: 200
A44: Procut Orange DS 7/2 | B44: 150
A45: Sunrich Lime DS 7/2 | B45: 210
A46: Sunrich Orange DS 7/2 | B46: 210 | G46: Trays per bag | H46: Trays needed | I46: # Bags Needed | J46: Price per bag | K46: Price for 2,000 plugs promix
A47: Procut Gold Lite DS 7/2 | B47: 150 | E47: Promix 2.8 cu ft bags | G47: 40 | H47: =J52 -> 56 | I47: =H47/G47 -> 1.4 | J47: 21.79 | K47: =I47*J47 -> 30.506
A48: Procut White DS 7/2 | B48: 200
I50: planting 2,000 as plugs
A51: Growing Transplants cost addition to seed cost | B51: For all 2,000 | E51: Trays | G51: Cells per tray | H51: price per tray | I51: Total number of trays | J51: Round up to whole | K51: Total tray price
A52: Avg seed cost | B52: =0.04*2000 -> 80 | E52: 606 black trays | G52: 36 | H52: 0.8 | I52: =2000/G52 -> 55.55555556 | J52: 56 | K52: =J52*H52 -> 44.8
A53: Growing Medium | B53: =K47 -> 30.506
A54: Trays | B54: =K52 -> 44.8 | D54: bulbs | E54: Wattage | F54: hours run a day | G54: Electricity cost per kwh | I54: Cost per month for 1 bulb | J54: Cost per month for all bulbs | K54: Months run
A55: Seed starting light energy use - | B55: =L55 -> 44.16 | D55: 16 | E55: 18 | F55: 16 | G55: 0.16 | I55: =1.38 -> 1.38 | J55: =I55*D55 -> 22.08 | K55: 2 | L55: =J55*K55 -> 44.16
A57: Total cost | B57: =SUM(B52:B55) -> 199.466 | C57: =B57/2000 -> 0.099733
A62: Ground Cover | B62: width | C62: length | D62: Total sq ft | E62: price each | G62: price per sq ft | H62: Total sq ft used
A63: DeWitt 3.2 oz Sunbelt, Woven Ground Cover Black 6 ft by 300 | B63: 6 | C63: 300 | D63: =B63*C63 -> 1800 | E63: 162.074 | G63: =E63/D63 -> 0.09004111111 | H63: 1000 | I63: =G63*H63 -> 90.04111111
G64: =G63/3 -> 0.0300137037
A65: Staples | B65: Total Bought | C65: Cost | D65: Cost per Staple | E65: Staples per Sq. Ft. | G65: Total Sq. Ft. | H65: Total # Staples
A66: Pro trade 6 inch sod staple flat top | B66: 300 | C66: 18 | D66: =C66/B66 -> 0.06 | E66: 1 | G66: 1000 | H66: =G66*E66 -> 1000
B67: 100 | C67: 9.59 | D67: 0.0959
C68: avg | D68: =(D67+D66)/2 -> 0.07795
A70: Flower Netting and stakes
B71: Price each | C71: 3 | D71: years | E71: stakes every 8 ft | G71: on each side | H71: width of bed | I71: 1000 | J71: sections of stakes | K71: Total number of stakes | L71: Round up number of stakes | M71: Price of stakes total
A72: Step in fence post TSC, 2 inch, 4 ft tall | B72: 2.99 | C72: =B72/C71 -> 0.9966666667 | E72: 8 | G72: 2 | H72: 3 | I72: =I71/H72 -> 333.3333333 | J72: =I72/E72 -> 41.66666667 | K72: =J72*2 -> 83.33333333 | L72: 84 | M72: =L72*B72 -> 251.16
B73: Width in ft | C73: length in ft | D73: Total sq ft | G73: Total plant support needed | H73: price per roll | I73: Price for netting
A74: Tenax plant support 6"X6" | B74: 4 | C74: 328 | D74: =B74*C74 -> 1312 | E74: =1000/D74 -> 0.762195122 | G74: 1 | H74: 75 | I74: =G74*H74 -> 75 | J74: =I74/1000 -> 0.075
A80: Fungicide | B80: number of sprays | C80: max application rate tbspoon per 1 gallon of water | D80: tablespoon in an oz | E80: application rate per 1 gal water in oz | G80: Gallons per 1,000 sq ft | H80: Total amount in oz to apply per growing | I80: Price for product | J80: oz in bottle | K80: price per oz | L80: Total cost for application per season | O80: Links
A81: Chlorothalonil Daconil -site one commercial | B81: 3 | E81: 3.6 | G81: 1 | H81: =(E81*G81)*B81 -> 10.8 | I81: 210 | J81: 320 | K81: =I81/J81 -> 0.65625 | L81: =H81*K81 -> 7.0875 | M81: using smaller bottles instead of commercial price here | O81: https://www.siteone.com/71418fung-daconil-weatherstik-fungicide-25-gal-agency/p/769562?store=454&cid=lia|siteone_2023_pest_XXXXX|{adgroup}|google&ds_k=&xmid=xm_%ebuy!_%25epid!_%ecid!&gad_source=1&gclid=Cj0KCQiA88a5BhDPARIsAFj595jFwv5HpkzBFqanxnnpc2uCP3M6wCFNlwqbts9ryoiWxF07CwchDZcaAokhEALw_wcB
A82: chlorothalonil - daconil | B82: 2 | C82: 3 | D82: 0.5 | E82: =C82*D82 -> 1.5 | G82: 1 | H82: =(E82*G82)*B82 -> 3 | I82: 17.16 | J82: 16 | K82: 1.0725 | L82: =H82*K82 -> 3.2175 | O82: https://www.homedepot.com/p/Daconil-16-oz-Concentrate-Fungicide-100536524/202268570
A83: Copper - capt jack's | B83: 1 | E83: 2 | G83: 2.3 | H83: 4.6 | I83: 17.98 | J83: 16 | K83: 1.12375 | L83: 5.16925 | O83: https://www.homedepot.com/p/Bonide-Captain-Jack-s-Copper-Fungicide-16-oz-Concentrate-for-Organic-Gardening-Controls-Common-Diseases-811/203911375
B85: copper - 1.1 to 2.3 gallons of diluted spray per 1,000 sq ft is application rate with 0.5 to 2.0 fluid oz of product range mixed in. took max for both | L85: =L83+L82 -> 8.38675 | M85: total fungicide application per season
B86: 1 gal per 1,000 sq ft. in rule of thumb for spraying for leaf coverage from Celeste. For daconil commercial product, 3.6 oz per 1,000 sq foot is application rate for single application recommendation from label.
B87: spray for leaf runoff, spot spraying
A89: Insecticide | B89: nu of sprays | E89: application rate per 1 gal water in oz | G89: gallons per 1,000 sq ft | H89: total amount in oz to apply per growing | I89: Price for product | J89: oz in bottle | K89: price per oz | L89: Total cost for application per season
A90: Sevin liquid - zetacypermethrin | B90: 4 | E90: 4 | G90: 1 | H90: =(E90*G90)*B90 -> 16 | I90: 18.97 | J90: 32 | K90: =I90/J90 -> 0.5928125 | L90: =H90*K90 -> 9.485 | O90: https://www.homedepot.com/p/Sevin-32-oz-16-000-sq-ft-Outdoor-Lawn-and-Garden-Insect-Killer-Concentrate-3-Month-Control-100530123/303593798
A91: separate sprays or tank mixed?
I92: knoxville seed and supply
A93: Fertilizer | B93: pounds of actual N per 1,000 sq ft | C93: N per bag | D93: pounds in bag | E93: lbs of N in bag | G93: Applying lbs of product | I93: price from receipt | J93: pounds in bag | K93: price per pound
A94: medium appl of fertilizer - 20-10-20 | B94: 2 | C94: 0.2 | D94: 25 | E94: =D94*C94 -> 5 | G94: =B94*E94 -> 10 | I94: 37.58 | J94: 25 | K94: =I94/J94 -> 1.5032 | L94: =G94*K94 -> 15.032
A95: *note: 2 pounds of nitrogen per 1,000 sq ft is medium fertilization split over 8 applications total
A97: Irrigation System
C98: total sq ft
A99: 3 ft wide beds, 2 lines, 200 linear feet of tape of that, so if it is 3 ft wide, 666.67 linear feet of tape | C99: 1000
A101: Variable only one year use: | B101: Bed widthin ft | C101: bed length in ft | D101: number of lines in bed | E101: Linear ft of driptape needed | I101: Price | J101: length in ft | K101: price per ft | L101: Total cost for driptape annual use
A102: Driptape - toro aqua-trax 5/8", 6 mil, 8 in, 0.5 gpm, 2500' | B102: 6 | C102: =C99/B102 -> 166.6666667 | D102: 4 | E102: =C102*D102 -> 666.6666667 | I102: 124 | J102: 2500 | K102: =I102/J102 -> 0.0496 | L102: =E102*K102 -> 33.06666667
C105: Useful life for fixed cost | D105: 3 | E105: years
A106: Irrigation Attachments
A107: From Irrigation King receipt Celeste | B107: Totalquantity from Celeste | C107: quantity for 1,000 | D107: price each unit | E107: Fixed cost | G107: Annual Purchase - Variable cost fittings
A108: 5/8" tape swivel X 5/8" tape swivel repair coupler | B108: 10 | C108: 5 | D108: 3.5 | E108: =C108*D108 -> 17.5 | G108: 5 | H108: =G108*D108 -> 17.5
A109: 8 mm punch red handle | B109: 1 | C109: 1 | D109: 6.95 | E109: 6.95 | H109: 0
A110: 5/8" tape end plug | B110: 20 | C110: 8 | D110: 5.2 | E110: 41.6 | G110: 2 | H110: 10.4
A111: starter mini-valve 10mm barb x 5/8" tape swivel | B111: 20 | C111: 8 | D111: 14.6 | E111: 116.8 | G111: 2 | H111: 29.2
A112: 3/4" permaloc elbow 800 series | B112: 1 | C112: 1 | D112: 3.69 | E112: 3.69 | H112: 0
A113: 3/4" permaloc x 3/4" MHT w cap plug 800 series | B113: 2 | C113: 1 | D113: 4.3 | E113: 4.3 | H113: 0
A114: 3/4" permaloc coupler 800 series | B114: 2 | C114: 1 | D114: 4.32 | E114: 4.32 | H114: 0
A115: 3/4" permaloc x 3/4" FHT 800 series | B115: 2 | C115: 1 | D115: 6.06 | E115: 6.06 | H115: 0
A116: 3/4" permaloc x 3/4 MPT 800 series | B116: 2 | C116: 1 | D116: 2.76 | E116: 2.76 | H116: 0
E117: 0 | H117: 0 | L117: City | M117: Water prices per 1,000 gallons
A118: From Dripworks receipt Celeste | E118: 0 | H118: 0 | L118: Lebanon | M118: 10.968
A119: Mainline 3/4" poly tubing - 100 ft | B119: 1 | C119: 1 | D119: 31.95 | E119: 31.95 | H119: 0 | L119: Murfreesboro | M119: 3.66
A120: 3/4 easy loc coupler | B120: 2 | D120: 4.98 | E120: 0 | G120: 2 | H120: 9.96 | L120: Bristol | M120: 6.28
A121: 3/4" easy loc elbow | B121: 2 | C121: 1 | D121: 7.78 | E121: 7.78 | H121: 0 | L121: Springfield | M121: 6.58
A122: 3/4" easy loc x male hose end | B122: 1 | C122: 1 | D122: 1.59 | E122: 1.59 | H122: 0 | L122: Fayetteville | M122: 7.83
A123: 3/4" easy loc tee | B123: 1 | C123: 1 | D123: 5.95 | E123: 5.95 | H123: 0 | L123: Clinton | M123: 5.7
A124: 3/4" easy loc valve | B124: 1 | C124: 1 | D124: 4.95 | E124: 4.95 | H124: 0 | L124: State average | M124: =AVERAGE(M118:M123) -> 6.836333333
A125: shipping - do we include? (none on irrigation king) | C125: 1 | D125: 14.95 | E125: 14.95 | H125: 0
C126: Total fixed cost | E126: =SUM(E108:E125) -> 271.15 | H126: =SUM(H108:H125) -> 67.06 | I126: Sum of annual fittings cost
E127: =E126/D105 -> 90.38333333 | F127: Total 1/4 acre | H127: *3 year life
A128: Irrigation kit to spread over 3 years for fixed cost. | B128: Driptape and annual attachments for variable cost should be around $100. | E128: =E127*0.2 -> 18.07666667 | F128: Total this crop
A130: Irrigation Usage Cost | B130: Inches of water to deliver | C130: Hours to run to deliver water | D130: minutes run | E130: Feet of driptape | F130: Gallons per minute emitted | G130: Total gallons emitted per minute for 1,000 sq feet | H130: Gallons per week | I130: Weeks to water (weeks to maturity from planting divided by 2) | J130: Total Gallons | K130: Thousand gallons | L130: Price per 1,000 gallon of water
A131: 0.5 GPM drip line at 12” emitter spacing | B131: 1 | C131: =5.8 -> 5.8 | D131: =C131*60 -> 348 | E131: =E102 -> 666.6666667 | F131: 0.5 | G131: 6.67 | H131: =G131*D131 -> 2321.16 | I131: =E150/2 -> 4.25 | J131: =H131*I131 -> 9864.93 | K131: =J131/1000 -> 9.86493 | L131: =M124 -> 6.836333333 | M131: =L131*K131 -> 67.43994979
C132: Penn state: https://extension.psu.edu/determining-how-long-to-run-drip-irrigation-systems-for-vegetables
A134: Labor (using UT Trial data but not using this method in budget) | B134: 1587 | C134: 1000
B135: hours for 1587 | C135: hours for 1,000 sq ft
A136: Burning Holes in fabric | B136: 8 | C136: =(B136*$C$134)/$B$134 -> 5.040957782
A137: irrigation set up | B137: 6 | C137: 3.780718336
A138: laying fabric | B138: 8 | C138: 5.040957782
A139: stakes/netting | B139: 6 | C139: 3.780718336
A140: Pre-plant (grow transplants, lay irrigation, plastic) Total | B140: =SUM(B136:B139) -> 28 | C140: 17.64335224
A141: Harvest hours - no data
A142: Planting | B142: 60 | C142: =(B142*$C$134)/$B$134 -> 37.80718336
A143: Weeding | B143: 6 | C143: 3.780718336
A144: Spraying | B144: 4.5 | C144: 2.835538752 | E144: Hours for 1,000 sq feet without harvest hours based on Celeste data
A145: Irrigation (measuring, mixing fert and setting timers) | B145: 4 | C145: 2.520478891
A146: Planting and Plant Maintenance (planting, spraying, weeding, irrigation) Total | B146: =SUM(B142:B145) -> 74.5 | C146: 46.94391934 | E146: =C140+C146 -> 64.58727158
A148: Labor Based on 1/4 acre operation, one full time employee
B149: Hours per week for 1/4 acre | C149: Number of crops in 1/4 acre at one time | D149: Hours per wk devoted to this crop | E149: Avg Number of weeks to produce this crop | F149: Total hours devoted to crop
B150: 40 | C150: 5 | D150: =B150/C150 -> 8 | E150: 8.5 | F150: =D150*E150 -> 68 | H150: Weeks to produce this crop determined from weeks to maturity of the crop from planting
B152: Labor rate | C152: 15.87 | D152: https://flag.dol.gov/wage-data/adverse-effect-wage-rates#range
A154: Harvest containers | B154: Number of containers | C154: 10 L, 10 count johnnys | D154: price each bucket | E154: total cost
B155: 100 | C155: 20.5 | D155: =C155/10 -> 2.05 | E155: =B155*D155 -> 205 | G155: https://www.johnnyseeds.com/tools-supplies/cut-flower-supplies/flower-buckets/flower-buckets-10-l-10-count-7824.html
A157: Land - cash rent | B157: 1,000 sq. ft. | C157: 1 | D157: 25 | E157: =C157*D157 -> 25 | F157: Cash rental rates are based on the 2022 USDA-NASS reported cash rental rates for irrigated cropland in Tennessee ($187/acre).
A159: Large Equipment | G159: Source
A160: High Tunnel Average Cost for a Standard 32' by 30' (960 sq. ft.) | B160: =(960*3.81)+1500 -> 5157.6 | C160: $3.81/foot | D160: 10 Year Dep. Life | E160: Salvage Value 10% | F160: =B160*0.1 -> 515.76 | G160: https://justplainbusiness.com/scenic-acres-greenhouse-mfg/ | K160: Economy Version Hightunnel Package 30*48 $5,497, $3.81/ft, Add Installation Fee of $1,500
A161: Not using high tunnel in this budget | B161: =(B160-F160)/10 -> 464.184 | C161: Per Year | G161: https://journals.flvc.org/edis/article/download/132085/138352/250524#:~:text=We%20assume%20the%20salvage%20value,value%2C%20following%20Biship%20et%20al.
A162: Tiller | B162: 4000 | C162: 5 Year Depreciation | D162: =B162*0.42 -> 1680 | G162: https://www.bcsamerica.com/product/model-732
B163: =((B162-D162)/5)*0.2 -> 92.8 | C163: Per Year
A164: Lawn Mower | B164: 2000 | C164: 5 Year Depreciation | D164: =B164*0.36 -> 720 | G164: https://www.foards.com/collections/bad-boy-mowers/products/bby25fj180
B165: =((B164-D164)/5)*0.2 -> 51.2 | C165: Per Year
A166: Machinery Repair and Maintenance 5% (No High Tunnel) | B166: =((B162+B164)*0.05)*0.2 -> 60
A167: ***Everything took 20% Except the High Tunnel - not utilized in this budget
A171: Small Tools and Small Equipment
A172: - EcoCart Hookup Kit | B172: 692.11 | G172: QC Supply
A173: - Mulch Hole Burner | B173: 350 | G173: https://www.johnnyseeds.com/tools-supplies/mulches-and-weed-barrier/mulch-tools-accessories/mulch-hole-burners/mulch-hole-burner-starter-kit-7664.0.html?utm_source=google&utm_medium=cpc&utm_campaign=BL%20|%20PMAX%20|%20Tools%20&%20Supplies&utm_keyword=&gad_source=1&gclid=CjwKCAiA6t-6BhA3EiwAltRFGM_mVcoh-t7zeG2pT1Q5rWVXhXudQjk49l5oKaiZk0BBQfONmWn3pxoC2K4QAvD_BwE
A174: - Craftsman Large Shovels (2) $25 | B174: 50 | G174: https://www.lowes.com/pd/CRAFTSMAN-45-in-Wood-Handle-Digging-Shovel/5015343867
A175: - Craftsman Large Heavy Rake (1) $25 | B175: 25 | G175: Lowes
A176: - Craftsman Leaf Rake (1) $25 | B176: 25 | G176: Lowes
A177: - Craftsman Garden Hoe (1) $25 | B177: 25 | G177: Lowes
A178: - Craftsman Stirrup Hoe (1) $28 | B178: 28 | G178: Lowes
A179: - Craftsman Wheel Barrow (1) $120 | B179: 120 | C179: flat bottom wagon for transporting buckets and trays | G179: Lowes
A180: - Fiskars Hand Pruners (2) $30 | B180: 60 | G180: Lowes
A181: - Fiskars Lopper (1) | B181: 35 | G181: Lowes
A182: - Garden Hand Tool Set (1) | B182: 50 | G182: Lowes
A183: - Garden Gloves (2) | B183: 40 | G183: https://www.lowes.com/pd/Miracle-Gro-SYNTH-LEATHER-HI-DEX-GLOVES-M/1002630254
A184: - Rubber Mallet (staples) | B184: 20
A185: - Hammer (2) $6 | B185: 12
A186: Total | B186: =SUM(B172:B185) -> 1532.11 | C186: Lasts for 3 Years
B187: =(B186/3)*0.2 -> 102.1406667
A189: Fuel | D189: Gallons or pounds | E189: Price per Gallon
A190: Lawn Mower for 1,000 sq. ft. | B190: .1 Gallons | C190: Mow 24 Times | D190: =0.1*24 -> 2.4 | E190: 3.75 | F190: =D190*E190 -> 9 | H190: =ROUNDUP(D190,0) -> 3 | I190: =H190+D191 -> 6 | J190: Total fuel use ingal
A191: Tiller for 1,000 sq. ft. | B191: .75 Gallons | C191: 4 Passes | D191: =0.75*4 -> 3 | E191: 3.75 | F191: 11.25
A192: Propane for Mulch Burner (1lb. Propane Cylinder) 20% in lbs | B192: 2 | C192: 13 | E192: =C192/B192 -> 6.5 | F192: =(13)*0.2 -> 2.6 | G192: https://www.lowes.com/pd/BernzOmatic-1-lb-2-Pack-Pre-Filled-Propane-Tank/50235565
B193: =B192*0.2 -> 0.4 | F193: =SUM(F190:F192) -> 22.85
A195: Paper Sleeves (5 stems per sleeve) *Not Included in Budget | B195: each | C195: 640 | D195: 0.4 | E195: =C195*D195 -> 256 | F195: https://www.johnnyseeds.com/tools-supplies/cut-flower-supplies/flower-post-harvest/kraft-paper-cut-flower-sleeves-l-100-count-7816.0.html?srsltid=AfmBOop0XMP8CWODgzTjYSjOYn0QwamVTEtCZErbQNThFCfQS3yMWMN4ULA
A198: Building Expenses
B199: Purchase | E199: Salvage | F199: Salvage | G199: Average | H199: Useful | J199: Interest | M199: Property
A200: Item | B200: Price | C200: Units | D200: Cost | E200: Percent | F200: Value | G200: Value | H200: Life | I200: Depreciation | J200: Rate | K200: Interest | L200: Insurance | M200: Tax | N200: Repairs
A201: Storage and Post Harvest Handling Building (15'X20'X16') | B201: 10000 | C201: 1 | D201: =B201*C201 -> 10000 | E201: 0.25 | F201: =D201*E201 -> 2500 | G201: =(D201+F201+I201)/2 -> 6500 | H201: 15 | I201: =(D201-F201)/H201 -> 500 | J201: 0.07 | K201: =(CUMIPMT(J201,5,B201,1,5,1)/20)*-1 -> 69.83807112 | L201: =G201*0.005 -> 32.5 | M201: =G201*0.005 -> 32.5 | N201: =D201*0.02 -> 200
M203: Total Annual Cost for 1/4 acre operation | N203: =I201+K201+L201+M201+N201 -> 834.8380711
M204: Total Annual Cost for this crop (20% of total) | N204: =N203*0.2 -> 166.9676142
